fUST/lending_fUST_20250723
["ID","MTS","AMOUNT","RATE_DAILY","PERIOD"]
[374136159,1753225849872,-230.799096,0.00025123,7]
[374136160,1753225849882,-230.799096,0.00025123,7]
[374136161,1753225849891,-230.79910307,0.00025123,7]
[374136162,1753225849902,-151.0,0.00025123,7]
[374136163,1753225849995,-151.0,0.00025123,7]
[374136164,1753225850004,-151.0,0.00025123,7]
[374136165,1753225850015,-151.0,0.00025123,7]
[374136166,1753225850026,-708778.10109897,0.00025134,20]
[374136167,1753225850156,-6458.87964869,0.00025134,20]
[374136168,1753225850167,-355.799998,0.00025134,20]
[374136169,1753225850560,-301.7542578,0.00016798,2]
[374136170,1753225866549,271017.84035223,0.000167,2]
[374136171,1753226074442,151.5768628,0.00016697,2]
[374136172,1753226140226,24900.0,0.00015798,2]
[374136173,1753226265250,174.50181649,0.00016696,2]
[374136174,1753226338509,168.648949,0.00015924,2]
[374136175,1753226373170,151.0,0.000167,2]
[374136176,1753226373518,151.0,0.000153,2]
[374136177,1753226373839,151.0,0.000138,2]
[374136178,1753226398606,-229.02887391,0.00016788,3]
[374136179,1753226401307,-164.82656904,0.00016788,3]
[374136180,1753226403995,-44.07455705,0.00016788,3]
[374136181,1753226404021,-143.04510987,0.00016794,2]
[374136182,1753226411180,-173.30380744,0.00016788,3]
[374136183,1753226416805,-45.65619256,0.00016788,3]
[374136184,1753226416828,-156.95489013,0.00016794,2]
[374136185,1753226416851,-4.72279625,0.00016794,2]
[374136186,1753226420835,-230.09974739,0.00016788,3]
[374136187,1753226424923,-180.86250546,0.00016788,3]
[374136188,1753226429815,-200.45661333,0.00016788,3]
[374136189,1753226433198,-45.49113382,0.00016788,3]
[374136190,1753226433224,-201.6531018,0.00016794,2]
[374136191,1753226437332,-93.62410195,0.00016794,2]
[374136192,1753226437356,-148.04824038,0.00016794,2]
[374136193,1753226439233,-151.95175962,0.00016794,2]
[374136194,1753226439257,-182.07246416,0.00016794,2]
[374136195,1753226442435,-238.40819577,0.00016794,2]
[374136196,1753226445732,-173.06651436,0.00016794,2]
[374136197,1753226449052,-215.10205148,0.00016794,2]
[374136198,1753226451305,-180.84289319,0.00016794,2]
[374136199,1753226453829,-159.0970965,0.00016794,2]
[374136200,1753226456748,-51.41078454,0.00016794,2]
[374136201,1753226456774,-123.7662647,0.00016794,2]
[374136202,1753226458374,-176.2337353,0.00016794,2]
[374136203,1753226458397,-64.46437353,0.00016794,2]
[374136204,1753226458476,152.68908942,0.00016695,2]
[374136205,1753226465720,-182.02067733,0.00016794,2]
[374136206,1753226467336,-53.51494914,0.00016794,2]
[374136207,1753226467361,-194.64404781,0.00016794,2]
[374136208,1753226470169,-105.35595219,0.00016794,2]
[374136209,1753226502561,-178.99569218,0.00016788,3]
[374136210,1753226504173,-39.96430782,0.00016788,3]
[374136211,1753226504200,-174.0,0.00016794,2]
[374136212,1753226554542,-328.18892647,0.00016787,3]
[374136213,1753226556042,-324.11948263,0.00016787,3]
[374136214,1753226569699,-4.5915909,0.00016787,3]
[374136215,1753226569724,-342.66,0.00016787,3]
[374136216,1753226569750,-206.68027152,0.00016794,2]
[374136217,1753226576983,-93.31972848,0.00016794,2]
[374136218,1753226584478,-197.21569772,0.00016793,2]
[374136219,1753226586263,-102.78430228,0.00016793,2]
[374136220,1753226590892,5478.3452922,0.00015798,2]
[374136225,1753226712479,626.516245,0.00013699,2]
[374136226,1753226713548,-178.0,0.00016794,2]
[374136227,1753226713574,-84.83684678,0.00016794,2]
[374136228,1753226715194,152.68908941,0.00016696,2]
[374136229,1753226718175,-241.00005075,0.00016794,2]
[374136230,1753226723722,-215.04589078,0.00016794,2]
[374136231,1753226729945,-152.17119309,0.00016794,2]
[374136232,1753226734243,-167.9460186,0.00016794,2]
[374136235,1753226885133,-381.43332725,0.00016794,2]
[374136236,1753226889036,-266.58550915,0.00016794,2]
[374136237,1753226890813,-297.59551405,0.00016794,2]
[374136240,1753226892815,-244.27372204,0.00016794,2]
[374136241,1753226895849,-342.19071281,0.00016794,2]
[374136242,1753226899864,-156.38526468,0.00016794,2]
[374136243,1753226905023,-178.34470795,0.00016794,2]
[374136244,1753226908167,-282.13344993,0.00016794,2]
[374136245,1753226913927,-173.62909139,0.00016793,2]
[374136246,1753226918215,-192.34568573,0.00016793,2]
[374136247,1753226919901,-134.02522288,0.00016793,2]
[374136248,1753226919926,-145.41686639,0.00016793,2]
[374136250,1753226922310,301.99999992,0.0002,120]
[374136251,1753226923763,-341.93393684,0.00016793,2]
[374136262,1753226931400,-12.64919677,0.00016793,2]
[374136263,1753226931423,-286.31070175,0.00016793,2]
[374136264,1753226935149,-213.68929825,0.00016793,2]
[374136265,1753226935174,-57.70329618,0.00016793,2]
[374136266,1753226938585,-125.77338128,0.00016793,2]
[374136267,1753226938610,-137.78557323,0.00016793,2]
[374136268,1753226944471,-212.72688834,0.00016793,2]
[374136269,1753226947210,-149.48753843,0.00016793,2]
[374136270,1753226947233,-49.91292331,0.00016793,2]
[374136271,1753226951216,-161.04010148,0.00016793,2]
[374136272,1753226954952,-10.17196222,0.00016793,2]
[374136273,1753226954977,-247.89147966,0.00016793,2]
[374136311,1753227032210,-175.17704924,0.00016793,2]
[374136312,1753227032225,-460.0,0.00016793,2]
[374136314,1753227032234,-460.0,0.00016793,2]
[374136316,1753227032244,-240.74827599,0.00016793,2]
[374136380,1753227038157,-11.36024435,0.00016793,2]
[374136381,1753227038167,-500.0,0.00016793,2]
[374136382,1753227038176,-538.22183105,0.00016793,2]
[374136383,1753227038186,-500.0,0.00016793,2]
[374136384,1753227038196,-500.0,0.00016793,2]
[374136385,1753227038206,-67.66635244,0.00016793,2]
[374136386,1753227038244,-436.20680161,0.00016793,2]
[374136387,1753227038254,-188.6274259,0.00016793,2]
[374136388,1753227038264,-500.0,0.00016793,2]
[374136389,1753227038274,-500.0,0.00016793,2]
[374136390,1753227038284,-500.0,0.00016793,2]
[374136391,1753227038294,-500.0,0.00016793,2]
[374136392,1753227038304,-500.0,0.00016793,2]
[374136393,1753227038314,-411.83393511,0.00016793,2]
[374136394,1753227038324,-500.0,0.00016793,2]
[374136395,1753227038334,-500.0,0.00016793,2]
[374136396,1753227038344,-500.0,0.00016793,2]
[374136397,1753227038354,-500.0,0.00016793,2]
[374136398,1753227038365,-500.0,0.00016793,2]
[374136399,1753227038375,-500.0,0.00016793,2]
[374136400,1753227038384,-500.0,0.00016793,2]
[374136401,1753227038394,-500.0,0.00016793,2]
[374136402,1753227038403,-500.0,0.00016793,2]
[374136403,1753227038568,-500.0,0.00016793,2]
[374136404,1753227038578,-500.0,0.00016793,2]
[374136405,1753227038587,-500.0,0.00016793,2]
[374136406,1753227038596,-221.21099152,0.00016793,2]
[374136407,1753227038605,-500.0,0.00016793,2]
[374136408,1753227038614,-500.0,0.00016793,2]
[374136409,1753227038623,-502.73276651,0.00016793,2]
[374136410,1753227038632,-500.0,0.00016793,2]
[374136411,1753227038642,-500.0,0.00016793,2]
[374136412,1753227038651,-500.0,0.00016793,2]
[374136413,1753227038660,-500.0,0.00016793,2]
[374136414,1753227038669,-350.14457462,0.00016793,2]
[374136415,1753227038679,-500.0,0.00016793,2]
[374136416,1753227038688,-500.0,0.00016793,2]
[374136417,1753227038697,-500.0,0.00016793,2]
[374136418,1753227038706,-500.0,0.00016793,2]
[374136419,1753227038715,-500.0,0.00016793,2]
[374136420,1753227038727,-500.0,0.00016793,2]
[374136421,1753227038736,-500.0,0.00016793,2]
[374136422,1753227038745,-500.0,0.00016793,2]
[374136423,1753227038754,-500.0,0.00016793,2]
[374136424,1753227038763,-500.0,0.00016793,2]
[374136425,1753227038773,-500.0,0.00016793,2]
[374136426,1753227038782,-500.0,0.00016793,2]
[374136427,1753227038792,-500.0,0.00016793,2]
[374136428,1753227038805,-500.0,0.00016793,2]
[374136429,1753227038814,-500.0,0.00016793,2]
[374136430,1753227038823,-500.0,0.00016793,2]
[374136431,1753227038832,-500.0,0.00016793,2]
[374136432,1753227038843,-500.0,0.00016793,2]
[374136433,1753227038851,-500.0,0.00016793,2]
[374136434,1753227038861,-500.0,0.00016793,2]
[374136435,1753227038870,-269.80321387,0.00016793,2]
[374136436,1753227038880,-500.0,0.00016793,2]
[374136437,1753227038889,-500.0,0.00016793,2]
[374136438,1753227038898,-500.0,0.00016793,2]
[374136439,1753227038907,-500.0,0.00016793,2]
[374136440,1753227038916,-500.0,0.00016793,2]
[374136441,1753227038926,-425.94870784,0.00016793,2]
[374136442,1753227038938,-74.05129216,0.00016793,2]
[374136443,1753227038947,-500.0,0.00016793,2]
[374136444,1753227038956,-500.0,0.00016793,2]
[374136445,1753227038966,-500.0,0.00016793,2]
[374136446,1753227038976,-500.0,0.00016793,2]
[374136447,1753227038985,-500.0,0.00016793,2]
[374136448,1753227038994,-79.98451768,0.00016793,2]
[374136449,1753227039010,-420.01548232,0.00016793,2]
[374136450,1753227039019,-443.13267144,0.00016793,2]
[374136451,1753227039028,-300.0,0.00016793,2]
[374136452,1753227039037,-421.05980424,0.00016793,2]
[374136453,1753227039047,-47851.05779214,0.00016794,2]
[374136454,1753227039058,-460.0,0.00016795,2]
[374136455,1753227039068,-460.0,0.00016795,2]
[374136456,1753227039077,-460.0,0.00016795,2]
[374136457,1753227039087,-460.0,0.00016795,2]
[374136458,1753227039096,-1048.65962984,0.00016795,2]
[374136459,1753227039106,-460.0,0.00016795,2]
[374136460,1753227039115,-189.49543788,0.00016795,2]
[374136461,1753227039125,-460.0,0.00016795,2]
[374136462,1753227039134,-460.0,0.00016795,2]
[374136463,1753227039145,-460.0,0.00016795,2]
[374136464,1753227039154,-460.0,0.00016795,2]
[374136465,1753227039163,-460.0,0.00016795,2]
[374136466,1753227039172,-460.0,0.00016795,2]
[374136467,1753227039181,-460.0,0.00016795,2]
[374136468,1753227039190,-460.0,0.00016795,2]
[374136469,1753227039200,-460.0,0.00016795,2]
[374136470,1753227039209,-460.0,0.00016795,2]
[374136471,1753227039220,-460.0,0.00016795,2]
[374136472,1753227039229,-460.0,0.00016795,2]
[374136473,1753227039238,-500.0,0.00016795,2]
[374136474,1753227039247,-460.0,0.00016795,2]
[374136475,1753227039256,-238.77431108,0.00016795,2]
[374136476,1753227039265,-460.0,0.00016795,2]
[374136477,1753227039275,-460.0,0.00016795,2]
[374136478,1753227039284,-460.0,0.00016795,2]
[374136479,1753227039293,-460.0,0.00016795,2]
[374136480,1753227039304,-460.0,0.00016795,2]
[374136481,1753227039314,-460.0,0.00016795,2]
[374136482,1753227039323,-460.0,0.00016795,2]
[374136483,1753227039332,-460.0,0.00016795,2]
[374136484,1753227039342,-1860.33,0.00016795,2]
[374136485,1753227039351,-596.42531374,0.00016795,2]
[374136486,1753227039360,-460.0,0.00016795,2]
[374136487,1753227039369,-460.0,0.00016795,2]
[374136488,1753227039379,-460.0,0.00016795,2]
[374136489,1753227039388,-460.0,0.00016795,2]
[374136490,1753227039397,-460.0,0.00016795,2]
[374136491,1753227039406,-460.0,0.00016795,2]
[374136492,1753227039415,-460.0,0.00016795,2]
[374136493,1753227039424,-460.0,0.00016795,2]
[374136494,1753227039434,-460.0,0.00016795,2]
[374136495,1753227039443,-1494.32,0.00016795,2]
[374136497,1753227039452,-460.0,0.00016795,2]
[374136499,1753227039461,-460.0,0.00016795,2]
[374136501,1753227039471,-460.0,0.00016795,2]
[374136503,1753227039480,-460.0,0.00016795,2]
[374136505,1753227039489,-478.26838523,0.00016795,2]
[374136507,1753227039499,-460.0,0.00016795,2]
[374136508,1753227039508,-460.0,0.00016795,2]
[374136509,1753227039517,-460.0,0.00016795,2]
[374136510,1753227039526,-460.0,0.00016795,2]
[374136511,1753227039535,-460.0,0.00016795,2]
[374136512,1753227039544,-460.0,0.00016795,2]
[374136513,1753227039554,-460.0,0.00016795,2]
[374136514,1753227039563,-460.0,0.00016795,2]
[374136515,1753227039573,-460.0,0.00016795,2]
[374136516,1753227039582,-460.0,0.00016795,2]
[374136517,1753227039592,-460.0,0.00016795,2]
[374136518,1753227039601,-1123.13,0.00016795,2]
[374136519,1753227039611,-460.0,0.00016795,2]
[374136520,1753227039620,-460.0,0.00016795,2]
[374136521,1753227039629,-460.0,0.00016795,2]
[374136522,1753227039639,-1152.83,0.00016795,2]
[374136523,1753227039648,-460.0,0.00016795,2]
[374136524,1753227039657,-460.0,0.00016795,2]
[374136525,1753227039666,-460.0,0.00016795,2]
[374136527,1753227039675,-460.0,0.00016795,2]
[374136528,1753227039684,-460.0,0.00016795,2]
[374136530,1753227039694,-467.0378933,0.00016795,2]
[374136532,1753227039703,-460.0,0.00016795,2]
[374136533,1753227039712,-556.67,0.00016795,2]
[374136534,1753227039722,-460.0,0.00016795,2]
[374136535,1753227039731,-460.0,0.00016795,2]
[374136536,1753227039741,-460.0,0.00016795,2]
[374136537,1753227039750,-460.0,0.00016795,2]
[374136538,1753227039760,-460.0,0.00016795,2]
[374136539,1753227039770,-460.0,0.00016795,2]
[374136540,1753227039779,-461.9747577,0.00016795,2]
[374136541,1753227039788,-652.44,0.00016795,2]
[374136542,1753227039799,-460.0,0.00016795,2]
[374136543,1753227039810,-460.0,0.00016795,2]
[374136544,1753227039820,-460.0,0.00016795,2]
[374136545,1753227039830,-460.0,0.00016795,2]
[374136546,1753227039839,-460.0,0.00016795,2]
[374136547,1753227039850,-460.0,0.00016795,2]
[374136548,1753227039860,-460.0,0.00016795,2]
[374136549,1753227039868,-460.0,0.00016795,2]
[374136550,1753227039879,-460.0,0.00016795,2]
[374136551,1753227039888,-460.0,0.00016795,2]
[374136552,1753227039897,-460.0,0.00016795,2]
[374136553,1753227039907,-460.0,0.00016795,2]
[374136554,1753227039916,-460.0,0.00016795,2]
[374136555,1753227039925,-460.0,0.00016795,2]
[374136556,1753227039934,-460.0,0.00016795,2]
[374136557,1753227039944,-500.0,0.00016796,2]
[374136558,1753227039954,-500.0,0.00016796,2]
[374136559,1753227039964,-500.0,0.00016796,2]
[374136560,1753227039975,-160.0,0.00016796,2]
[374136561,1753227039985,-460.0,0.00016797,2]
[374136562,1753227039994,-460.0,0.00016797,2]
[374136563,1753227040003,-1015.50208925,0.00016797,2]
[374136564,1753227040012,-460.0,0.00016797,2]
[374136565,1753227040021,-460.0,0.00016797,2]
[374136566,1753227040031,-500.0,0.00016797,2]
[374136567,1753227040040,-460.0,0.00016797,2]
[374136568,1753227040050,-460.0,0.00016797,2]
[374136569,1753227040059,-460.0,0.00016797,2]
[374136570,1753227040069,-460.0,0.00016797,2]
[374136571,1753227040078,-460.0,0.00016797,2]
[374136572,1753227040088,-460.0,0.00016797,2]
[374136574,1753227040097,-460.0,0.00016797,2]
[374136576,1753227040107,-460.0,0.00016797,2]
[374136578,1753227040116,-460.0,0.00016797,2]
[374136579,1753227040126,-460.0,0.00016797,2]
[374136580,1753227040135,-460.0,0.00016797,2]
[374136581,1753227040144,-460.0,0.00016797,2]
[374136582,1753227040154,-460.0,0.00016797,2]
[374136583,1753227040163,-460.0,0.00016797,2]
[374136584,1753227040174,-460.0,0.00016797,2]
[374136585,1753227040183,-460.0,0.00016797,2]
[374136586,1753227040192,-460.0,0.00016797,2]
[374136587,1753227040201,-460.0,0.00016797,2]
[374136588,1753227040210,-460.0,0.00016797,2]
[374136589,1753227040219,-460.0,0.00016797,2]
[374136590,1753227040229,-460.0,0.00016797,2]
[374136591,1753227040238,-461.59525047,0.00016797,2]
[374136592,1753227040247,-460.0,0.00016797,2]
[374136593,1753227040256,-460.0,0.00016797,2]
[374136594,1753227040266,-460.0,0.00016797,2]
[374136595,1753227040275,-460.0,0.00016797,2]
[374136596,1753227040285,-460.0,0.00016797,2]
[374136597,1753227040294,-460.0,0.00016797,2]
[374136598,1753227040303,-460.16349882,0.00016797,2]
[374136599,1753227040312,-460.0,0.00016797,2]
[374136600,1753227040321,-460.0,0.00016797,2]
[374136601,1753227040330,-2022.49,0.00016797,2]
[374136602,1753227040340,-460.0,0.00016797,2]
[374136603,1753227040350,-460.0,0.00016797,2]
[374136604,1753227040359,-460.0,0.00016797,2]
[374136605,1753227040369,-460.0,0.00016797,2]
[374136606,1753227040378,-460.0,0.00016797,2]
[374136607,1753227040387,-460.0,0.00016797,2]
[374136608,1753227040397,-460.0,0.00016797,2]
[374136609,1753227040406,-460.0,0.00016797,2]
[374136610,1753227040415,-460.0,0.00016797,2]
[374136611,1753227040425,-460.0,0.00016797,2]
[374136612,1753227040434,-460.0,0.00016797,2]
[374136613,1753227040443,-465.60802618,0.00016797,2]
[374136614,1753227040453,-460.0,0.00016797,2]
[374136615,1753227040462,-460.0,0.00016797,2]
[374136616,1753227040472,-460.0,0.00016797,2]
[374136617,1753227040482,-946.41,0.00016797,2]
[374136618,1753227040491,-460.0,0.00016797,2]
[374136619,1753227040501,-460.0,0.00016797,2]
[374136620,1753227040510,-460.0,0.00016797,2]
[374136621,1753227040520,-460.0,0.00016797,2]
[374136622,1753227040529,-460.0,0.00016797,2]
[374136623,1753227040539,-460.0,0.00016797,2]
[374136624,1753227040549,-460.0,0.00016797,2]
[374136625,1753227040558,-460.0,0.00016797,2]
[374136626,1753227040567,-460.0,0.00016797,2]
[374136627,1753227040576,-460.0,0.00016797,2]
[374136628,1753227040586,-460.0,0.00016797,2]
[374136629,1753227040595,-460.0,0.00016797,2]
[374136630,1753227040604,-460.0,0.00016797,2]
[374136631,1753227040614,-460.0,0.00016797,2]
[374136632,1753227040623,-460.0,0.00016797,2]
[374136633,1753227040632,-460.0,0.00016797,2]
[374136634,1753227040641,-460.0,0.00016797,2]
[374136635,1753227040650,-460.0,0.00016797,2]
[374136636,1753227040660,-460.0,0.00016797,2]
[374136637,1753227040669,-460.0,0.00016797,2]
[374136638,1753227040679,-460.0,0.00016797,2]
[374136639,1753227040689,-460.0,0.00016797,2]
[374136640,1753227040698,-460.0,0.00016797,2]
[374136641,1753227040707,-460.0,0.00016797,2]
[374136642,1753227040716,-460.0,0.00016797,2]
[374136643,1753227040726,-460.0,0.00016797,2]
[374136644,1753227040735,-460.0,0.00016797,2]
[374136645,1753227040745,-460.0,0.00016797,2]
[374136646,1753227040755,-460.0,0.00016797,2]
[374136647,1753227040764,-196.70955208,0.00016797,2]
[374136648,1753227040773,-460.0,0.00016797,2]
[374136649,1753227040783,-460.0,0.00016797,2]
[374136650,1753227040792,-460.0,0.00016797,2]
[374136651,1753227040806,-460.0,0.00016797,2]
[374136652,1753227040815,-460.0,0.00016797,2]
[374136653,1753227040825,-460.0,0.00016797,2]
[374136654,1753227040834,-979.44,0.00016797,2]
[374136655,1753227040845,-460.0,0.00016797,2]
[374136656,1753227040854,-460.0,0.00016797,2]
[374136657,1753227040863,-460.0,0.00016797,2]
[374136658,1753227040874,-460.0,0.00016797,2]
[374136659,1753227040976,-460.0,0.00016797,2]
[374136660,1753227040989,-460.0,0.00016797,2]
[374136661,1753227040999,-460.0,0.00016797,2]
[374136662,1753227041008,-887.93,0.00016797,2]
[374136663,1753227041017,-460.0,0.00016797,2]
[374136664,1753227041026,-460.0,0.00016797,2]
[374136665,1753227041036,-460.0,0.00016797,2]
[374136666,1753227041045,-500.0,0.00016797,2]
[374136667,1753227041055,-460.0,0.00016797,2]
[374136668,1753227041064,-460.0,0.00016797,2]
[374136669,1753227041074,-866.92,0.00016797,2]
[374136670,1753227041083,-460.0,0.00016797,2]
[374136671,1753227041092,-460.0,0.00016797,2]
[374136672,1753227041102,-460.0,0.00016797,2]
[374136673,1753227041111,-460.0,0.00016797,2]
[374136674,1753227041120,-460.0,0.00016797,2]
[374136675,1753227041130,-443.29369013,0.00016797,2]
[374136676,1753227041139,-597.79708008,0.00016797,2]
[374136677,1753227041148,-460.0,0.00016797,2]
[374136678,1753227041158,-460.0,0.00016797,2]
[374136679,1753227041168,-559.4143089,0.00016797,2]
[374136680,1753227041177,-500.0,0.00016798,2]
[374136681,1753227041186,-500.0,0.00016798,2]
[374136682,1753227041195,-460.0,0.00016798,2]
[374136683,1753227041205,-460.0,0.00016798,2]
[374136684,1753227041214,-460.0,0.00016798,2]
[374136685,1753227041224,-460.0,0.00016798,2]
[374136686,1753227041233,-460.0,0.00016798,2]
[374136687,1753227041243,-356.11161815,0.00016798,2]
[374136688,1753227041252,-460.0,0.00016798,2]
[374136689,1753227041262,-460.0,0.00016798,2]
[374136690,1753227041271,-460.0,0.00016798,2]
[374136691,1753227041280,-171.26722872,0.00016798,2]
[374136692,1753227041290,-460.0,0.00016798,2]
[374136693,1753227041299,-460.0,0.00016798,2]
[374136694,1753227041308,-460.0,0.00016798,2]
[374136695,1753227041318,-460.0,0.00016798,2]
[374136696,1753227041328,-460.0,0.00016798,2]
[374136697,1753227041337,-460.0,0.00016798,2]
[374136698,1753227041347,-460.0,0.00016798,2]
[374136699,1753227041357,-237.63082189,0.00016798,2]
[374136700,1753227041366,-460.0,0.00016798,2]
[374136701,1753227041376,-246.76515755,0.00016798,2]
[374136702,1753227041385,-460.0,0.00016798,2]
[374136703,1753227041395,-460.0,0.00016798,2]
[374136704,1753227041404,-460.0,0.00016798,2]
[374136705,1753227041413,-460.0,0.00016798,2]
[374136706,1753227041422,-460.0,0.00016798,2]
[374136707,1753227041431,-460.0,0.00016798,2]
[374136708,1753227041440,-460.0,0.00016798,2]
[374136709,1753227041449,-224.46592327,0.00016798,2]
[374136710,1753227041458,-460.0,0.00016798,2]
[374136711,1753227041467,-460.0,0.00016798,2]
[374136712,1753227041478,-460.0,0.00016798,2]
[374136713,1753227041488,-460.0,0.00016798,2]
[374136714,1753227041497,-460.0,0.00016798,2]
[374136715,1753227041506,-460.0,0.00016798,2]
[374136716,1753227041515,-460.0,0.00016798,2]
[374136717,1753227041524,-461.08374357,0.00016798,2]
[374136718,1753227041534,-535.61285519,0.00016798,2]
[374136719,1753227041543,-460.0,0.00016798,2]
[374136720,1753227041553,-460.0,0.00016798,2]
[374136721,1753227041563,-460.0,0.00016798,2]
[374136722,1753227041572,-460.0,0.00016798,2]
[374136723,1753227041581,-460.0,0.00016798,2]
[374136724,1753227041591,-500.0,0.00016798,2]
[374136725,1753227041601,-460.0,0.00016798,2]
[374136726,1753227041610,-460.0,0.00016798,2]
[374136727,1753227041620,-473.14714418,0.00016798,2]
[374136728,1753227041629,-460.0,0.00016798,2]
[374136729,1753227041639,-460.0,0.00016798,2]
[374136730,1753227041650,-211.06454854,0.00016798,2]
[374136731,1753227041661,-460.0,0.00016798,2]
[374136732,1753227041671,-460.0,0.00016798,2]
[374136733,1753227041680,-460.0,0.00016798,2]
[374136734,1753227041690,-460.0,0.00016798,2]
[374136735,1753227041699,-460.0,0.00016798,2]
[374136736,1753227041708,-460.0,0.00016798,2]
[374136737,1753227041718,-460.0,0.00016798,2]
[374136738,1753227041729,-463.99058075,0.00016798,2]
[374136739,1753227041738,-460.0,0.00016798,2]
[374136740,1753227041748,-460.0,0.00016798,2]
[374136741,1753227041757,-462.26785164,0.00016798,2]
[374136742,1753227041766,-464.75998881,0.00016798,2]
[374136743,1753227041776,-460.0,0.00016798,2]
[374136744,1753227041786,-460.0,0.00016798,2]
[374136745,1753227041795,-461.73710452,0.00016798,2]
[374136746,1753227041810,-460.0,0.00016798,2]
[374136747,1753227041819,-460.0,0.00016798,2]
[374136748,1753227041828,-460.0,0.00016798,2]
[374136749,1753227041837,-460.0,0.00016798,2]
[374136750,1753227041847,-500.0,0.00016798,2]
[374136751,1753227041856,-500.0,0.00016798,2]
[374136752,1753227041866,-460.0,0.00016798,2]
[374136753,1753227041876,-460.0,0.00016798,2]
[374136754,1753227041887,-460.0,0.00016798,2]
[374136755,1753227041896,-460.0,0.00016798,2]
[374136756,1753227041904,-460.0,0.00016798,2]
[374136757,1753227041914,-460.0,0.00016798,2]
[374136758,1753227041923,-460.0,0.00016798,2]
[374136759,1753227041933,-460.0,0.00016798,2]
[374136760,1753227041942,-460.0,0.00016798,2]
[374136761,1753227041951,-460.0,0.00016798,2]
[374136762,1753227041960,-460.89597521,0.00016799,2]
[374136763,1753227041970,-567.78,0.00016799,2]
[374136764,1753227041980,-460.0,0.00016799,2]
[374136765,1753227041989,-562.08,0.00016799,2]
[374136766,1753227041998,-463.50686102,0.00016799,2]
[374136767,1753227042007,-460.0,0.00016799,2]
[374136768,1753227042017,-460.0,0.00016799,2]
[374136769,1753227042026,-460.0,0.00016799,2]
[374136770,1753227042035,-460.0,0.00016799,2]
[374136771,1753227042045,-460.0,0.00016799,2]
[374136772,1753227042055,-460.0,0.00016799,2]
[374136773,1753227042064,-407.20143883,0.00016799,2]
[374136774,1753227042073,-704.66,0.00016799,2]
[374136775,1753227042082,-600.63,0.00016799,2]
[374136776,1753227042092,-460.0,0.00016799,2]
[374136777,1753227042101,-474.44,0.00016799,2]
[374136778,1753227042111,-1610.18,0.00016799,2]
[374136779,1753227042120,-460.0,0.00016799,2]
[374136780,1753227042129,-953.79,0.00016799,2]
[374136781,1753227042139,-460.0,0.00016799,2]
[374136782,1753227042149,-289.184877,0.000168,2]
[374136783,1753227042158,-500.0,0.000168,2]
[374136784,1753227042168,-500.0,0.00016974,2]
[374136785,1753227042177,-500.0,0.00016974,2]
[374136786,1753227042186,-500.0,0.00016974,2]
[374136787,1753227042195,-500.0,0.00016974,2]
[374136788,1753227042204,-500.0,0.00016974,2]
[374136789,1753227042214,-460.0,0.00017067,2]
[374136790,1753227042225,-460.0,0.00017069,2]
[374136791,1753227042234,-460.0,0.00017069,2]